bitfinex-derivatives/quotes_ETHF0:USTF0_20250410
["timestamp","ask_amount","ask_price","bid_price","bid_amount"]
[1744297878985,2.815,1556.5,1556.4,1.28569]
[1744297879179,6.0228,1556.5,1556.4,1.28569]
[1744297879582,7.30847,1556.5,1556.3,9.12578]
[1744297879789,2.815,1556.5,1556.4,1.28576]
[1744297879977,6.0228,1556.5,1556.4,1.28576]
[1744297880379,18.14251,1556.5,1556.4,1.28576]
[1744297880782,11.8568,1556.5,1556.4,1.28576]
[1744297881383,13.14247,1556.5,1556.4,1.28576]
[1744297881687,20.98814222,1556.5,1556.0,5.87362]
[1744297881889,3.2078,1556.2,1556.1,1.286]
[1744297882286,8.4116,1556.3,1556.2,1.28592]
[1744297883084,4.52184,1556.3,1556.2,1.28592]
[1744297883477,4.52184,1556.5,1555.7,9.21343422]
[1744297883681,3.2078,1555.8,1555.7,0.00963422]
[1744297883878,7.72964,1556.0,1555.7,0.00963422]
[1744297884089,2.7258,1555.9,1555.8,1.28625]
[1744297884289,2.7258,1556.1,1556.0,1.28609]
[1744297884477,3.2078,1556.2,1555.9,7.841]
[1744297884683,3.2078,1556.2,1555.9,10.4092]
[1744297884889,3.2078,1556.2,1556.0,1.28606]
[1744297885083,2.7258,1556.1,1555.9,11.69529]
[1744297885277,1.2862,1555.9,1555.7,0.00963422]
[1744297885583,4.49405,1555.8,1555.7,0.00963422]
[1744297886087,9.87924774,1555.8,1555.7,0.00963422]
[1744297886390,14.93428621,1555.8,1555.7,0.00963422]
[1744297886590,1.28642,1555.6,1555.5,9.74567931]
[1744297886782,5.38024122,1555.6,1555.5,9.74567931]
[1744297886989,10.38024122,1555.6,1555.5,9.74567931]
[1744297887188,13.07524122,1555.6,1555.5,9.74567931]
[1744297887396,18.13037923,1555.6,1555.5,9.74567931]
[1744297888892,1.2865,1555.5,1555.4,0.00963422]
[1744297889078,1.28667,1555.3,1555.2,4.687]
[1744297889285,4.49447,1555.3,1555.2,4.687]
[1744297889485,9.49447,1555.3,1555.2,4.687]
[1744297889685,4.49447,1555.3,1555.2,4.687]
[1744297889889,14.01631,1555.3,1555.2,3.34923]
[1744297890188,1.28716,1554.7,1554.6,2.7427]
[1744297890388,3.2078,1554.8,1554.6,4.0299]
[1744297890588,4.49492,1554.8,1554.6,4.0299]
[1744297890787,5.7793,1554.8,1554.5,1.29690422]
[1744297890986,1.28725,1554.6,1554.5,1.29690422]
[1744297891184,1.28725,1554.6,1554.5,0.00963422]
[1744297891389,5.7793,1554.8,1554.6,1.28722]
[1744297891585,5.7793,1554.8,1554.6,2.7427]
[1744297892088,1.28725,1554.6,1554.5,0.00963422]
[1744297892395,4.49505,1554.6,1554.5,0.00963422]
[1744297893391,7.06642,1554.8,1554.5,0.00963422]
[1744297893692,7.06642,1554.8,1554.6,1.28719]
[1744297893891,7.06642,1554.8,1554.6,4.10159]
[1744297894591,1.28716,1554.7,1554.6,2.8144]
[1744297894993,4.09476,1554.7,1554.6,2.8144]
[1744297895391,1.28725,1554.6,1554.5,0.00963422]
[1744297895588,4.11345,1554.6,1554.5,1.29696422]
[1744297895779,2.8262,1554.6,1554.5,1.29696422]
[1744297895980,3.2078,1554.8,1554.6,1.28725]
[1744297896289,1.28716,1554.7,1554.6,10.1196]
[1744297896586,3.21936,1554.1,1553.5,1.2881]
[1744297896788,1.28799,1553.7,1553.6,2.5626]
[1744297896980,1.28816,1553.5,1553.4,9.74567931]
[1744297897287,4.49596,1553.5,1553.4,9.74567931]
[1744297897683,1.28824,1553.4,1553.3,0.00963422]
[1744297897887,4.11444,1553.4,1553.3,0.00963422]
[1744297898087,9.11444,1553.4,1553.3,0.00963422]
[1744297898390,2.8262,1553.4,1553.3,0.00963422]
[1744297898588,3.2078,1553.5,1553.4,1.28824]
[1744297898786,3.2078,1553.5,1553.4,2.639]
[1744297898994,4.49596,1553.5,1553.4,2.639]
[1744297899188,5.8472,1553.5,1553.4,3.92724]
[1744297899389,7.13536,1553.5,1553.4,2.639]
[1744297899692,5.8472,1553.5,1553.4,3.92724]
[1744297900090,0.00963422,1553.6,1553.5,1.28816]
[1744297900997,1.29773422,1553.6,1553.4,3.92718]
[1744297901196,2.64903422,1553.6,1553.5,1.28816]
[1744297901398,2.64903422,1553.6,1553.5,3.87146]
[1744297901697,3.93710422,1553.6,1553.5,2.5833]
[1744297901888,3.93717422,1553.6,1553.3,7.56963422]
[1744297902388,2.64903422,1553.6,1553.5,1.28816]
[1744297902697,1.28824,1553.4,1553.3,0.00963422]
[1744297902891,3.22132,1553.1,1552.4,3.2078]
[1744297903088,1.28878,1552.8,1552.6,1.28887]
[1744297903290,3.2078,1552.9,1552.8,1.28874]
[1744297903491,3.2078,1553.2,1553.0,1.28854]
[1744297903691,3.2078,1553.2,1552.8,5.80514]
[1744297903891,3.2078,1553.2,1553.0,1.2885]
[1744297904091,4.50584422,1553.2,1553.1,2.5833]
[1744297904292,0.00963422,1553.2,1553.1,3.87179]
[1744297904487,4.49583,1553.7,1553.2,3.22102]
[1744297904796,3.2078,1553.7,1553.3,10.2318]
[1744297905092,3.2078,1553.9,1553.5,3.2078]
[1744297905296,7.31417,1553.9,1553.7,1.28797]
[1744297905689,7.31417,1553.9,1553.6,3.95781]
[1744297905888,6.0263,1553.9,1553.6,2.67943422]
[1744297906194,1.28791,1553.8,1553.7,2.6698]
[1744297906398,7.31421,1553.8,1553.6,1.29770422]
[1744297906589,7.31426,1553.8,1553.6,1.29767422]
[1744297906790,6.0263,1553.8,1553.7,1.28799]
[1744297906989,3.2078,1553.8,1553.7,3.95779]
[1744297907292,3.2078,1553.8,1553.7,11.52079]
[1744297907596,0.00963422,1554.0,1553.7,10.2328]
[1744297907799,1.29742422,1554.0,1553.8,1.28791]
[1744297907996,7.30412422,1554.0,1553.9,2.7249]
[1744297908191,6.01633422,1554.0,1553.7,7.563]
[1744297908392,6.01633422,1554.0,1553.8,2.7249]
[1744297908593,6.01633422,1554.0,1553.8,4.01273]
[1744297908792,7.30412422,1554.0,1553.7,7.563]
[1744297908993,6.01633422,1554.0,1553.7,7.563]
[1744297909300,1.28785,1553.9,1553.7,8.85093]
[1744297909500,6.0067,1553.8,1553.7,7.563]
[1744297909800,6.0067,1553.8,1553.7,8.85099]
[1744297910099,3.2078,1553.8,1553.7,7.563]
[1744297910303,3.21743422,1554.0,1553.9,1.28783]
[1744297910495,3.21743422,1554.0,1553.8,1.28787]
[1744297910686,4.50519422,1554.0,1553.7,7.563]
[1744297910892,4.50519422,1554.0,1553.8,1.28784]
[1744297911093,1.28791,1553.8,1553.7,7.563]
[1744297911293,4.49571,1553.8,1553.7,7.563]
[1744297911493,1.28799,1553.7,1553.6,0.00963422]
[1744297911795,2.7551,1553.7,1553.6,1.29765422]
[1744297912193,4.04309,1553.7,1553.6,1.29765422]
[1744297912400,4.04309,1553.7,1553.6,0.00963422]
[1744297912899,4.04309,1553.7,1553.6,1.29770422]
[1744297913295,2.7551,1553.7,1553.6,1.29770422]
[1744297913700,3.2078,1553.8,1553.7,1.28799]
[1744297913900,3.2078,1553.8,1553.7,3.96009]
[1744297915098,3.95343,1553.9,1553.7,3.96005]
[1744297915393,2.6656,1553.9,1553.6,0.00963422]
[1744297915599,4.49579,1553.7,1553.6,4.22e-06]
[1744297915800,1.28853,1553.1,1552.8,2.6721]
[1744297916104,3.2078,1553.1,1553.0,1.28857]
[1744297916797,3.2078,1553.1,1552.9,1.2886]
[1744297916998,3.2078,1553.1,1553.0,4.06337]
[1744297917196,3.2078,1553.1,1553.0,2.7748]
[1744297917394,4.49629,1553.1,1553.0,2.7748]
[1744297917598,1.28857,1553.0,1552.9,0.00963422]
[1744297917897,4.00487,1553.0,1552.9,0.00963422]
[1744297918103,9.38738238,1553.0,1552.9,0.00963422]
[1744297918298,1.28899,1552.5,1552.4,2.7748]
[1744297918496,1.28913,1552.4,1552.2,6.7954]
[1744297918694,5.9241,1552.4,1552.1,4.06408]
[1744297918896,2.7163,1552.4,1552.3,1.28915]
[1744297919208,3.2078,1552.8,1552.7,1.28881]
[1744297919504,1.28862,1553.0,1552.8,1.28872]
[1744297919505,3.2078,1553.0,1552.8,1.28872]
[1744297919810,0.00963422,1552.9,1552.8,1.28874]
[1744297920506,0.00963422,1552.9,1552.8,6.28874]
[1744297920698,3.2078,1553.4,1552.8,8.2078]
[1744297920900,2.8094,1553.7,1553.4,3.22048]
[1744297921101,1.28787,1553.9,1553.5,7.567]
[1744297921301,2.8094,1553.9,1553.8,1.28791]
[1744297921500,3.2078,1554.0,1553.5,3.2078]
[1744297921806,4.49594,1553.6,1553.1,3.22123]
[1744297922001,3.2078,1553.6,1553.2,6.42881]
[1744297922201,3.2078,1553.6,1553.3,7.567]
[1744297922400,0.00963422,1553.9,1553.3,10.78781]
[1744297922599,2.8094,1553.8,1553.6,1.288]
[1744297922794,2.8094,1553.8,1553.7,1.28799]
[1744297923308,0.00963422,1553.9,1553.8,1.28791]
[1744297924613,1.28791,1553.8,1553.7,7.421]
[1744297924799,2.92333422,1553.9,1553.8,1.28791]
[1744297925002,2.92333422,1553.9,1553.2,112.06842422]
[1744297925003,2.9137,1553.7,1553.2,112.06842422]
[1744297925208,4.20171,1553.7,1553.3,40.8]
[1744297925603,2.9137,1553.7,1553.6,1.28807]
[1744297925908,2.9137,1553.7,1553.2,0.00963422]
[1744297925909,3.22019,1553.6,1553.2,0.00963422]
[1744297926111,1.28832,1553.3,1553.2,0.00963422]
[1744297926308,2.17209991,1553.3,1553.2,0.00963422]
[1744297926499,4.93159991,1553.3,1553.2,0.00963422]
[1744297926700,4.93206184,1553.3,1553.2,0.00963422]
[1744297927303,4.43209469,1553.3,1553.2,0.00963422]
[1744297927507,3.2078,1553.4,1553.2,7.42963422]
[1744297927710,3.2078,1553.6,1553.5,1.28816]
[1744297928210,3.21743422,1553.9,1553.8,1.28791]
[1744297928410,3.60165377,1553.9,1553.7,8.70793]
[1744297928607,0.38419415,1553.8,1553.4,10.2499]
[1744297928805,2.8566,1553.7,1553.6,1.288]
[1744297928999,2.8566,1553.7,1553.6,1.28807]
[1744297929205,2.8566,1553.7,1553.4,10.2499]
[1744297929401,3.21743422,1553.9,1553.5,6.4282]
[1744297929612,3.21743422,1553.9,1553.8,1.28791]
[1744297929803,4.88927624,1553.9,1553.8,7.42]
[1744297930007,7.74587624,1553.9,1553.8,7.42]
[1744297930204,0.00963422,1553.9,1553.8,11.91571]
[1744297930408,3.2078,1554.4,1554.0,3.21925]
[1744297930712,3.2078,1554.1,1554.0,1.28774]
[1744297930916,3.2078,1554.1,1554.0,40.8]
[1744297931108,4.49546,1554.1,1554.0,40.8]
[1744297931309,5.37912749,1554.1,1554.0,40.8]
[1744297931509,4.87954767,1554.1,1554.0,40.8]
[1744297932319,1.28774,1554.0,1553.9,0.00963422]
[1744297932522,4.11864,1554.0,1553.9,0.00963422]
[1744297933008,2.8309,1554.0,1553.9,1.29746422]
[1744297935214,4.11864,1554.0,1553.9,0.00963422]
[1744297936207,0.00963422,1554.2,1554.1,1.28766]
[1744297936417,0.00963422,1554.2,1553.9,8.22904422]
[1744297936418,1.28766,1554.1,1553.9,1.29739422]
[1744297936719,1.62750172,1554.0,1553.9,0.00963422]
[1744297937019,4.37850172,1554.0,1553.9,0.00963422]
[1744297938514,3.2078,1554.1,1553.9,0.00963422]
[1744297938814,4.49548,1554.1,1554.0,1.28774]
[1744297939217,1.28774,1554.0,1553.9,7.42863422]
[1744297939823,1.28774,1554.0,1553.9,8.71646422]
[1744297940217,4.49547,1554.1,1554.0,1.28774]
[1744297940520,0.00963422,1554.2,1554.1,1.28766]
[1744297942225,0.00963422,1554.2,1554.1,6.28766]
[1744297942426,0.00963422,1554.2,1554.1,12.18036]
[1744297942725,4.22e-06,1554.2,1554.1,18.20488201]
[1744297943129,3.25391931,1554.3,1554.2,1.28758]
[1744297943425,3.25391931,1554.3,1554.2,4.17018]
[1744297943627,3.25391931,1554.3,1554.2,9.17018]
[1744297943922,9.69232717,1554.4,1554.3,1.28749]
[1744297944226,9.15616626,1554.5,1554.4,1.28741]
[1744297944421,9.16580048,1554.5,1554.4,4.02231]
[1744297944721,9.16580048,1554.5,1554.4,15.89425172]
[1744297944918,9.16580048,1554.5,1554.4,49.82231]
[1744297945118,0.00963422,1554.5,1554.4,49.82231]
[1744297945525,0.00963422,1554.5,1554.4,54.72921224]
[1744297945724,4.22e-06,1554.5,1554.4,57.93701224]
[1744297946734,4.22e-06,1554.5,1554.4,54.72921224]
[1744297947027,4.22e-06,1554.5,1554.4,57.93701224]
[1744297948833,13.65075626,1555.2,1555.0,1.28685]
[1744297949030,13.65075626,1555.2,1555.1,8.70283]
[1744297949231,9.15616626,1555.2,1555.1,8.70283]
[1744297949828,3.2078,1555.4,1555.2,1.28667]
[1744297950023,0.00963422,1555.3,1555.2,3.99807]
[1744297950723,3.2078,1555.7,1555.3,1.28667]
[1744297950924,3.2078,1555.7,1555.6,1.28641]
[1744297951225,3.2078,1555.7,1555.5,7.415]
[1744297951433,3.2078,1555.7,1555.6,1.28642]
[1744297951731,1.28642,1555.6,1555.5,7.415]
[1744297951929,8.2078,1555.7,1555.5,7.415]
[1744297952528,9.49416,1555.7,1555.5,8.70145]
[1744297952727,3.2078,1555.7,1555.6,1.28642]
[1744297953230,8.2078,1555.7,1555.5,8.70144]
[1744297953422,1.28642,1555.6,1555.5,7.415]
[1744297953930,1.28642,1555.6,1555.1,44.01702]
[1744297953931,1.2865,1555.5,1555.4,1.28658]
[1744297954127,4.49436,1555.5,1555.4,1.28658]
[1744297954433,9.4943,1555.5,1555.4,1.28658]
[1744297954625,8.2078,1555.5,1555.2,10.48178]
[1744297954821,3.2078,1555.3,1555.2,8.55175]
[1744297956426,3.2078,1555.3,1555.2,11.36025]
[1744297957336,2.58,1555.5,1555.4,1.28658]
[1744297958332,3.8665,1555.5,1555.4,1.28658]
[1744297959036,1.28667,1555.3,1555.2,1.28675]
[1744297959331,4.49447,1555.3,1555.2,1.28675]
[1744297959533,12.30517,1555.3,1555.2,1.28675]
[1744297960028,1.28675,1555.2,1555.0,0.00963422]
[1744297960237,7.30533,1555.1,1555.0,0.00963422]
[1744297960437,7.30533,1555.1,1555.0,1.29654422]
[1744297960641,6.0185,1555.1,1555.0,42.09654422]
[1744297961227,7.30533,1555.1,1555.0,42.09654422]
[1744297961629,6.0185,1555.1,1555.0,42.09654422]
[1744297961937,7.30533,1555.1,1555.0,42.09654422]
[1744297962140,7.30533,1555.1,1555.0,40.80963422]
[1744297962637,7.30533,1555.1,1555.0,0.00963422]
[1744297965734,7.30533,1555.1,1555.0,1.29654422]
[1744297966442,6.0185,1555.1,1555.0,1.29654422]
[1744297966741,7.30533,1555.1,1555.0,0.00963422]
[1744297967634,12.30533,1555.1,1555.0,0.00963422]
[1744297967832,12.64624149,1555.1,1555.0,0.00963422]
[1744297970141,7.64624149,1555.1,1555.0,0.00963422]
[1744297970841,7.64768914,1555.1,1555.0,0.00963422]
[1744297973040,13.48168914,1555.1,1555.0,0.00963422]
[1744297973242,13.48203922,1555.1,1555.0,0.00963422]
[1744297976143,12.19520922,1555.1,1555.0,0.00963422]
[1744297976339,13.48203922,1555.1,1555.0,1.29654422]
[1744297977554,13.48191211,1555.1,1555.0,1.29654422]
[1744297977846,13.13933,1555.1,1555.0,1.29654422]
[1744297978047,13.13933,1555.1,1555.0,3.90094422]
[1744297978443,13.13933,1555.1,1555.0,0.00963422]
[1744297978845,1.28716,1554.7,1554.6,1.28718]
[1744297979042,4.49496,1554.7,1554.6,1.28718]
[1744297979638,3.2078,1554.7,1554.6,1.28718]
[1744297979839,0.00963422,1554.8,1554.6,8.2078]
[1744297980045,0.00963422,1554.8,1554.7,3.89156]
[1744297980545,0.00963422,1554.8,1554.7,8.89156]
[1744297980752,2.6807,1555.2,1555.1,1.28683]
[1744297980951,2.6807,1555.2,1555.0,10.62674]
[1744297981147,2.6807,1555.2,1555.1,1.28683]
[1744297981349,3.2078,1555.3,1555.2,1.28675]
[1744297981551,4.49447,1555.3,1555.2,1.28675]
[1744297981743,12.04925555,1555.3,1555.2,1.28675]
[1744297981945,13.97926555,1555.3,1555.0,50.1399]
[1744297982251,4.49463,1555.1,1555.0,47.499]
[1744297982554,4.49463,1555.1,1555.0,48.78591]
[1744297982864,4.49463,1555.1,1554.6,9.2038]
[1744297982865,1.28725,1554.6,1554.5,0.00963422]
[1744297983153,4.49505,1554.6,1554.5,1.29696422]
[1744297983549,7.17575,1554.6,1554.5,0.00963422]
[1744297983950,13.00975,1554.6,1554.5,0.00963422]
[1744297984456,3.21874,1554.4,1554.0,1.2877]
[1744297984655,3.2078,1554.2,1553.9,7.10771831]
[1744297984956,2.778,1554.1,1554.0,1.28774]
[1744297985255,2.778,1554.1,1554.0,3.99254]
[1744297985944,1.28774,1554.0,1553.9,6.70863422]
[1744297986255,4.49554,1554.0,1553.9,6.70863422]
[1744297986457,7.27354,1554.0,1553.9,6.70863422]
[1744297986655,7.27354,1554.0,1553.9,7.99646422]
[1744297987051,5.9858,1554.0,1553.9,7.99646422]
[1744297987661,5.9858,1554.0,1553.9,0.00963422]
[1744297987849,12.27354,1554.0,1553.9,0.00963422]
[1744297988159,8.7158,1554.0,1553.9,0.00963422]
[1744297988359,5.834,1554.1,1554.0,1.28774]
[1744297988563,3.21743422,1554.2,1554.0,1.28774]
[1744297988564,3.21743422,1554.2,1554.1,1.28766]
[1744297988857,0.00963422,1554.2,1554.1,3.87946]
[1744297989056,0.00963422,1554.2,1554.1,8.87946]
[1744297989259,0.00963422,1554.2,1554.1,3.87946]
[1744297989558,0.00963422,1554.2,1554.1,44.67946]
[1744297989559,1.29721422,1554.2,1554.1,44.67946]
[1744297989760,0.00963422,1554.2,1554.1,44.67946]
[1744297989952,3.21743422,1554.2,1554.1,1.28766]
[1744297990460,4.50501422,1554.2,1554.1,1.28766]
[1744297990654,3.21743422,1554.2,1554.0,9.5352]
[1744297990853,2.8376,1554.1,1554.0,10.82289]
[1744297991457,4.12526,1554.1,1554.0,10.82289]
[1744297991663,2.8376,1554.1,1554.0,10.82289]
[1744297992660,0.00963422,1554.2,1554.1,1.28766]
[1744297993860,0.00963422,1554.2,1554.1,6.28766]
[1744297995359,0.00963422,1554.2,1554.1,1.28766]
[1744297996047,0.00963422,1554.2,1554.1,6.28766]
[1744297996448,0.00963422,1554.2,1554.0,9.5352]
[1744297996449,1.28774,1554.0,1553.9,0.00963422]
[1744297996650,4.49554,1554.0,1553.9,0.00963422]
[1744297996859,9.49554,1554.0,1553.9,0.00963422]
[1744297997053,9.49554,1554.0,1553.9,1.29746422]
[1744297997259,2.6804,1554.0,1553.9,7.99846422]
[1744297997660,2.6804,1554.0,1553.9,0.00963422]
[1744297997861,7.17594,1554.0,1553.9,0.00963422]
[1744297998263,5.8882,1554.0,1553.9,1.29746422]
[1744297998852,3.2078,1554.0,1553.9,6.29746422]
[1744297999360,3.2078,1554.0,1553.9,1.29746422]
[1744297999659,3.2078,1554.0,1553.9,42.09746422]
[1744298000265,4.50503422,1554.2,1554.1,1.28766]
[1744298000460,4.50503422,1554.2,1554.1,7.98966]
[1744298000762,4.50503422,1554.2,1554.1,6.702]
[1744298001257,1.28774,1554.0,1553.9,0.00963422]
[1744298001450,4.49554,1554.0,1553.9,0.00963422]
[1744298001858,12.19794,1554.0,1553.9,0.00963422]
[1744298003062,18.03194,1554.0,1553.9,0.00963422]
[1744298003561,1.28821,1553.5,1553.4,1.28819]
[1744298003767,1.28824,1553.4,1553.3,11.03396931]
[1744298003960,3.92674,1553.4,1553.3,11.03396931]
[1744298004760,3.92674,1553.4,1553.3,9.74567931]
[1744298005159,9.76074,1553.4,1553.3,9.74567931]
[1744298005769,9.76074,1553.4,1553.2,14.74579981]
[1744298005770,1.28832,1553.3,1553.2,14.74579981]
[1744298006068,10.33012,1553.3,1553.2,14.74579981]
[1744298006365,15.33012,1553.3,1553.2,14.74579981]
[1744298007159,3.22116,1553.2,1552.8,2.5732]
[1744298007359,4.49645,1552.9,1552.8,3.86192]
[1744298007667,4.49645,1552.9,1552.8,3.86194]
[1744298007867,3.2078,1552.9,1552.8,3.86194]
[1744298008565,4.49645,1552.9,1552.8,3.86194]
[1744298008754,3.2078,1552.9,1552.8,3.86194]
[1744298008955,4.49645,1552.9,1552.8,3.86194]
[1744298009154,1.28874,1552.8,1552.7,1.29843422]
[1744298009373,5.8839,1552.9,1552.7,1.29843422]
[1744298009563,5.8839,1552.9,1552.7,0.00963422]
[1744298009867,7.17261,1552.9,1552.8,1.28874]
[1744298010076,3.2078,1552.9,1552.8,3.90454]
[1744298010569,1.28874,1552.8,1552.7,0.00963422]
[1744298010769,3.96484,1552.8,1552.7,0.00963422]
[1744298010963,9.79884,1552.8,1552.7,0.00963422]
[1744298011268,9.79884,1552.8,1552.3,16.02531559]
[1744298011269,1.28907,1552.4,1552.3,16.02531559]
[1744298011464,5.834,1552.5,1552.4,1.28907]
[1744298011669,1.28884,1552.7,1552.6,1.28884]
[1744298011869,11.7179,1552.8,1552.7,1.28882]
[1744298011870,13.0067,1552.8,1552.7,1.28882]
[1744298012070,1.28884,1552.7,1552.6,1.28884]
[1744298012271,1.28882,1552.7,1552.6,0.00963422]
[1744298012469,1.28882,1552.7,1552.6,4.08383422]
[1744298012870,11.7179,1552.8,1552.7,1.28882]
[1744298012871,9.0418,1552.8,1552.7,1.28882]
[1744298013070,10.33054,1552.8,1552.7,2.7853]
[1744298014071,10.33054,1552.8,1552.7,4.07412]
[1744298014072,3.2078,1552.8,1552.7,4.07412]
[1744298014276,1.29833422,1552.9,1552.8,1.28874]
[1744298014571,0.00963422,1552.9,1552.8,1.28874]
[1744298014865,0.00963422,1552.9,1552.8,12.13144]
[1744298015864,0.00963422,1552.9,1552.8,8.92364]
[1744298016167,3.2078,1553.3,1552.8,13.6309]
[1744298016367,4.87408555,1553.7,1553.3,3.22082]
[1744298016575,3.2078,1553.6,1553.4,9.4179]
[1744298016870,1.28808,1553.6,1553.4,9.4179]
[1744298017171,1.28816,1553.5,1553.4,10.70611]
[1744298017369,1.28816,1553.5,1553.4,9.4179]
[1744298017585,1.28816,1553.5,1553.4,10.70614]
[1744298017773,1.28824,1553.4,1553.3,0.00963422]
[1744298018075,4.49604,1553.4,1553.3,0.00963422]
[1744298018375,3.2078,1553.4,1553.3,1.29795422]
[1744298018761,3.2078,1553.6,1553.5,1.28816]
[1744298019164,3.2078,1553.6,1553.5,4.08186]
[1744298019967,4.49587,1553.6,1553.5,2.7937]
[1744298020372,1.28816,1553.5,1553.4,6.627]
[1744298020573,1.28824,1553.4,1553.3,0.00963422]
[1744298020773,4.49604,1553.4,1553.3,0.00963422]
[1744298020970,15.33004,1553.4,1553.3,0.00963422]
[1744298021166,17.92854,1553.4,1553.3,0.00963422]
[1744298021568,12.92854,1553.4,1553.3,0.00963422]
[1744298022277,17.92854,1553.4,1553.3,4.22e-06]
[1744298022473,12.92854,1553.4,1553.3,4.22e-06]
[1744298023074,7.09454,1553.4,1553.3,4.22e-06]
[1744298023980,5.8063,1553.4,1553.3,1.28832]
[1744298024182,1.28832,1553.3,1553.2,2.723]
[1744298024379,3.22164,1552.9,1552.2,6.43071]
[1744298024679,3.2078,1552.7,1552.4,1.28903]
[1744298024976,1.28915,1552.3,1552.2,6.627]
[1744298025573,4.49695,1552.3,1552.2,2.8534]
[1744298025980,9.0418,1552.5,1552.2,2.8534]
[1744298026173,9.0418,1552.5,1552.4,1.28907]
[1744298026368,1.28892,1552.6,1552.5,1.28894]
[1744298026575,3.21743422,1552.7,1552.5,1.28894]
[1744298026781,3.21743422,1552.7,1552.5,1.28896]
[1744298026983,1.28893,1552.6,1552.4,1.28902]
[1744298027479,1.2889,1552.6,1552.4,1.28905]
[1744298027682,3.2078,1552.5,1552.3,6.627]
[1744298027873,1.28907,1552.4,1552.3,6.627]
[1744298028275,3.2078,1552.5,1552.3,6.627]
[1744298028476,1.28907,1552.4,1552.3,6.627]
[1744298029373,5.9606,1552.5,1552.3,6.627]
[1744298029776,5.9606,1552.5,1552.3,7.91615]
[1744298029974,3.2078,1552.5,1552.3,6.627]
[1744298030181,3.21743422,1552.7,1552.5,1.28897]
[1744298030380,5.834,1552.6,1552.1,1.29890422]
[1744298030580,5.9527,1552.5,1552.1,1.29889422]
[1744298030779,3.2078,1552.5,1552.2,1.28919]
[1744298030983,5.884,1552.5,1552.2,1.28919]
[1744298031481,5.884,1552.5,1552.1,0.00963422]
[1744298031678,5.884,1552.5,1552.1,1.29894422]
[1744298031878,5.884,1552.5,1552.2,1.28923]
[1744298032083,5.884,1552.5,1552.1,0.00963422]
[1744298032281,5.884,1552.5,1552.3,1.28912]
[1744298032483,3.21743422,1552.7,1552.6,1.2889]
[1744298032777,3.21743422,1552.7,1552.6,6.628]
[1744298033772,3.21743422,1552.7,1552.4,1.28907]
[1744298034181,3.21743422,1552.7,1552.3,6.629]
[1744298034377,3.21743422,1552.7,1552.5,1.28898]
[1744298034581,3.21743422,1552.7,1552.6,1.2889]
[1744298035489,0.00963422,1552.7,1552.6,1.2889]
[1744298035790,0.00963422,1552.7,1552.5,1.28895]
[1744298036192,0.00963422,1552.7,1552.6,1.2889]
[1744298037088,0.00963422,1552.7,1552.4,6.43047]
[1744298037395,0.00963422,1552.7,1552.5,1.28891]
[1744298037886,0.00963422,1552.7,1552.6,1.2889]
[1744298038092,0.00963422,1552.7,1552.5,1.28893]
[1744298038994,0.00963422,1552.7,1552.6,1.2889]
[1744298039195,0.00963422,1552.7,1552.5,1.28892]
[1744298039395,0.00963422,1552.7,1552.3,19.0707]
[1744298039585,0.00963422,1552.7,1552.5,1.28892]
[1744298039787,7.02786422,1552.7,1552.4,1.289]
[1744298039988,5.73903422,1552.7,1552.5,1.28897]
[1744298040191,7.02787422,1552.7,1552.3,15.84788]
[1744298040385,5.73903422,1552.7,1552.3,12.625]
[1744298040690,4.49679,1552.5,1552.3,12.625]
[1744298041195,3.81067,1552.4,1552.3,5.996]
[1744298041397,1.28924,1552.2,1552.1,0.00963422]
[1744298041695,1.28953,1551.9,1551.6,1.28971]
[1744298041900,1.28953,1551.9,1551.4,51.29556]
[1744298041901,3.2078,1551.9,1551.4,51.29556]
[1744298042101,4.4973,1551.9,1551.6,1.28967]
[1744298042400,3.2078,1551.7,1551.4,40.8]
[1744298042701,4.50717588,1551.7,1551.4,40.80966588]
[1744298042996,7.11316588,1551.7,1551.4,42.09953588]
[1744298043202,3.90532588,1551.7,1551.5,7.91677]
[1744298043392,7.11312588,1551.7,1551.5,7.91677]
[1744298043593,3.21746588,1551.7,1551.6,1.28973]
[1744298043900,0.00966588,1551.7,1551.6,1.28973]
[1744298044293,0.00966588,1551.7,1551.4,0.00966588]
[1744298044500,1.29934588,1551.7,1551.5,1.28975]
[1744298044706,1.29931588,1551.7,1551.5,7.91675]
[1744298044896,0.00966588,1551.7,1551.5,6.627]
[1744298045098,0.00966588,1551.7,1551.4,0.00966588]
[1744298045099,1.28977,1551.6,1551.4,0.00966588]
[1744298045405,1.28979,1551.6,1551.4,0.00966588]
[1744298045599,1.28979,1551.6,1551.4,6.63666588]
[1744298045903,1.28982,1551.6,1551.4,7.92654588]
[1744298046103,2.7729,1551.6,1551.4,6.63666588]
[1744298046296,3.21746588,1551.7,1551.4,6.63666588]
[1744298046905,3.21746588,1551.7,1551.5,2.7765]
[1744298046906,1.3041007,1551.6,1551.5,2.7765]
[1744298047302,4.0770007,1551.6,1551.5,2.7765]
[1744298047501,4.08185712,1551.6,1551.5,2.7765]
[1744298048006,4.08185712,1551.6,1551.5,4.06632]
[1744298048007,0.01922712,1551.6,1551.5,4.06632]
[1744298048300,0.00966588,1551.7,1551.5,2.7765]
[1744298048301,3.21746588,1551.7,1551.5,2.7765]
[1744298048500,11.63726588,1551.7,1551.4,0.00966588]
[1744298048805,0.00966588,1551.7,1551.6,1.28973]
[1744298049006,3.2078,1550.8,1549.9,16.73670473]
[1744298049205,1.29148,1549.5,1549.4,43.02452309]
[1744298049394,1.29148,1549.5,1549.4,9.45964572]
[1744298049395,10.33328,1549.5,1549.4,9.45964572]
[1744298049595,17.27063,1549.5,1548.7,54.26499766]
[1744298049803,3.2078,1549.3,1548.7,54.26499766]
[1744298050102,0.01456926,1549.1,1549.0,12.8949]
[1744298050306,0.01456926,1549.1,1548.0,0.11234631]
[1744298050607,3.2078,1548.3,1547.9,3.8542]